Cogmind - Beta 16 @@@ ROGUE MODE // 2026.01.05 @ 18:53:04 Player: leto Result: Destroyed by P-60 Hacker with Shock Rifle Performance ------------- Evolutions (3) 1500 Regions Visited (6) 1200 Robots Destroyed (130) 650 Value Destroyed (3667) 3667 Prototype IDs (24) 480 Alien Tech Used (0) 0 Bonus (752) 752 TOTAL SCORE: 8249 Bonus ------- High Alert Combat Kills 364 Follower Combat Kills 88 Aligned with FarCom 300 Cogmind --------- Core Integrity 0/700 Matter 231/300 Energy 290/290 System Corruption 9% Temperature Cool (0) Movement Flying (165) Ox2 Location -7/Factory Parts ------- > --- POWER (1) -------- Improved Deuterium Engine > --- PROPULSION (5) --- Improved Cesium-ion Thruster > --- UTILITY (5) ------ Hacking Suite Hacking Suite Hacking Suite Hacking Suite Hacking Suite > --- WEAPON (2) ------- Axe > --- INVENTORY (5) ---- Hacking Suite Hacking Suite System Shield Mini Grenade Launcher Peak State ------------ > --- POWER ------------ Heavy Deuterium Engine > --- PROPULSION ------- VTOL Module VTOL Module Improved Cesium-ion Thruster Improved Cesium-ion Thruster Improved Cesium-ion Thruster > --- UTILITY ---------- Huge Storage Unit Core Analyzer Core Analyzer Hacking Suite Hacking Suite > --- WEAPON ----------- Gatling Laser Gatling Laser > --- INVENTORY -------- Improved Deuterium Engine Improved Deuterium Engine Improved Deuterium Engine Improved Deuterium Engine Armored Wheel Core Analyzer Hacking Suite Improved EM Shotgun Gatling Laser Gatling Laser Improved EM Pulse Cannon Improved EM Pulse Cannon Improved EM Pulse Cannon Improved EM Pulse Cannon Improved EM Pulse Cannon Heavy Ion Cannon Mini Grenade Launcher Mini Grenade Launcher Mini Grenade Launcher Improved Grenade Launcher Improved Grenade Launcher Heavy Rocket Launcher Remote Datajack [Rating: 55] Favorites ----------- Power Ion Engine Engine Ion Engine Propulsion Light Treads Treads Light Treads Leg Titanium Leg Wheel Compact Wheel Flight Unit Improved Cesium-ion Thruster Utility Huge Storage Unit Device Supersonic Drone Bay Storage Huge Storage Unit Processor Core Analyzer Hackware Hacking Suite Protection Improved Light Armor Plating Weapon Shotgun Energy Gun Improved EM Shotgun Ballistic Gun Shotgun Launcher Improved Grenade Launcher Special Weapon Remote Datajack Slashing Weapon Scythe Special Melee Weapon Datajack Build | -11 -10 -10 -10 -9 -8 -7 ------- Run | Yrd Mat Min Exi Min Mat Fac Slots Evolved 6 | . . . . . 4 2 Power . | . . . . . . . Propulsion 3 | . . . . . 2 1 Utility 3 | . . . . . 2 1 Weapon . | . . . . . . . Parts Attached 128 | 7 12 . 4 3 49 53 Power 15 | 2 1 . 1 1 4 6 Engine 15 | 2 1 . 1 1 4 6 Core . | . . . . . . . Reactor . | . . . . . . . Propulsion 43 | 2 2 . . . 17 22 Treads 19 | 2 2 . . . 13 2 Leg 6 | . . . . . 2 4 Wheel 6 | . . . . . 2 4 Hover . | . . . . . . . Flight 12 | . . . . . . 12 Utility 30 | 1 3 . 2 . 12 12 Device 11 | . 1 . 2 . 5 3 Storage 3 | 1 1 . . . 1 . Processor 6 | . 1 . . . 3 2 Hackware 5 | . . . . . . 5 Protection 5 | . . . . . 3 2 Artifact . | . . . . . . . Weapon 40 | 2 6 . 1 2 16 13 Energy Gun 11 | 1 1 . . . 5 4 Energy Cannon . | . . . . . . . Ballistic Gun 14 | 1 4 . . 2 6 1 Ballistic Cannon . | . . . . . . . Launcher 8 | . . . . . 3 5 Special Weapon 3 | . 1 . . . 1 1 Impact Weapon . | . . . . . . . Slashing Weapon 2 | . . . . . 1 1 Piercing Weapon . | . . . . . . . Special Melee Weapon 2 | . . . 1 . . 1 Unidentified Prototypes 11 | . . . 2 . 6 3 Parts Lost 55 | . 5 1 . . 22 27 Power 6 | . 1 1 . . 2 2 Propulsion 26 | . 2 . . . 9 15 Utility 11 | . . . . . 7 4 Weapon 12 | . 2 . . . 4 6 Highest Loss Streak 11 | . 4 1 . . 10 11 To Critical Strikes 1 | . . . . . 1 . Average Backups 16 | 2 9 16 18 19 21 15 Power 2 | . . . 1 1 4 2 Propulsion 2 | 1 3 4 5 5 2 1 Utility 3 | . 2 3 5 5 5 2 Weapon 6 | . 2 5 7 6 9 8 Tool/Special . | . . . . . . . Unused Backups 28 | . . . . . 8 20 Power 2 | . . . . . 1 1 Propulsion 4 | . . . . . 3 1 Utility 8 | . . . . . 2 6 Weapon 13 | . . . . . 2 11 Tool/Special 1 | . . . . . . 1 Average Slot Usage (%) 89 | . 95 96 86 96 86 88 Engine 9 | . 13 10 14 14 8 6 Treads 19 | . 27 28 28 28 26 2 Leg 2 | . . . . . 1 6 Wheel 2 | . . . . . 2 5 Flight 5 | . . . . . . 16 Device 7 | . 9 14 14 14 9 2 Storage 9 | . 14 14 14 14 9 3 Processor 5 | . 2 . . . 8 6 Hackware 5 | . . . . . . 16 Protection 1 | . . . . . 3 2 Energy Gun 3 | . 7 . . . 3 3 Ballistic Gun 10 | . 18 28 3 22 11 1 Launcher 1 | . . . . . . 3 Slashing Weapon 1 | . . . . . 1 2 Peak Build Rating 55 | 6 13 15 18 18 41 55 Average Rating 27 | 5 10 13 15 17 30 40 On Entrance 13 | . 6 13 14 17 18 26 Avg Prop Armor Cover (%) 9 | . . . . . 18 5 Naked Turns . | . . . . . . . Heaviest Build 103 | 14 92 92 92 90 102 103 Greatest Support 80 | 40 40 40 40 40 80 68 Greatest Overweight (x) 33 | . 4 2 2 2 33 31 Average Overweight (x) 1 | . 1 2 2 2 3 . Largest Inventory Capacity 25 | 8 25 25 25 25 25 25 Average Capacity 21 | 7 24 25 25 25 25 15 Most Carried 25 | 4 18 24 25 21 25 25 Average Carried 17 | 2 12 21 21 19 21 15 Final Capacity 25 | 8 25 25 25 25 25 5 Final Carried 24 | 4 18 24 19 21 24 4 Class Distribution -------------------- 59% | Mutant 15% | Scavenger-Mutant 14% | Hacker-Sprinter 8% | Skirmisher Dominant Class ---------------- Mutant | -10/Materials Mutant | -10/Mines Mutant | -10/Exiles Mutant | -9/Mines Mutant | -8/Materials Hacker-Sprinter | -7/Factory Resources | -11 -10 -10 -10 -9 -8 -7 ----------- Run | Yrd Mat Min Exi Min Mat Fac Matter Collected 3277 | 133 487 107 . 103 1366 1081 Remotely . | . . . . . . . Salvage Created 4448 | 85 534 169 . 87 2222 1351 Parts 269 | 5 39 12 . 5 127 81 Haulers Intercepted 9 | . 1 . . . 4 4 Recyclers Shooed 2 | . . . . . . 2 Parts Field Recycled . | . . . . . . . Retrieved Matter . | . . . . . . . Parts Self-Destructed . | . . . . . . . Prevented . | . . . . . . . Parts Restored . | . . . . . . . Kills | -11 -10 -10 -10 -9 -8 -7 ------- Run | Yrd Mat Min Exi Min Mat Fac Combat Hostiles Destroyed 79 | . 14 4 . 2 41 18 Melee 7 | . . . . . 1 6 Guns 61 | . 14 4 . 2 34 7 AOE 9 | . . . . . 5 4 Classes Destroyed 14 | 2 8 . . 1 2 1 Worker 13 | . 1 1 . . 8 3 Builder 6 | . 1 . . . 3 2 Tunneler 4 | 1 . . . . 2 1 Hauler 9 | . 1 . . . 4 4 Recycler 7 | 1 . 1 . . 1 4 Operator 5 | . 1 . . . 2 2 Watcher 7 | . 2 . . . 4 1 Swarmer 21 | . 6 2 . . 10 3 Grunt 36 | . 5 2 . 1 24 4 Brawler 4 | . . . . 1 2 1 Sentry 6 | . . . . . 3 3 Hunter 2 | . . . . . 2 . Programmer 7 | . . . . . . 7 Subdweller 3 | . 3 . . . . . Best Kill Streak 6 | 2 4 4 . 2 6 6 Combat Bots Only 5 | . 4 2 . 2 5 2 Max Kills in Single Turn 4 | 1 1 1 . 1 3 4 Gunslinging . | . . . . . . . Exploded 1 | . . . . . 1 1 Melee 1 | . . . . . 1 1 Uniques/NPCs Destroyed . | . . . . . . . Combat | -11 -10 -10 -10 -9 -8 -7 -------- Run | Yrd Mat Min Exi Min Mat Fac Hostile Shots Fired 763 | . 105 26 . 15 300 317 Missed 202 | . 23 6 . 3 66 104 Hits 561 | . 82 20 . 12 234 213 Melee 22 | . . . . 4 14 4 Projectile 539 | . 82 20 . 8 220 209 AOE 2 | . . . . . . 2 Critical Strikes 15 | . . . . 1 11 3 Part Disruptions 1 | . . . . . . 1 Damage Taken 8401 | . 1088 223 . 194 3787 3109 Core 1381 | . 178 67 . . 429 707 Absorbed by Shields 152 | . . . . . . 152 Regen/Repaired (Parts) 90 | . . . . . 19 71 Core Remaining (%) 41 | 100 . . . 2 22 . Volleys Fired 337 | 5 90 14 . 11 165 52 Largest 2 | 2 2 2 . 1 2 2 Hottest 160 | 70 70 46 . 20 118 160 Shots Fired 552 | 10 139 28 . 11 294 70 Gun 518 | 10 139 28 . 11 281 49 Cannon . | . . . . . . . Launcher 24 | . . . . . 11 13 Special 10 | . . . . . 2 8 Kinetic 344 | 5 105 28 . 11 185 10 Thermal 149 | 5 34 . . . 98 12 Explosive 24 | . . . . . 11 13 Electromagnetic 27 | . . . . . . 27 Robot Hit Streak 24 | 5 20 5 . 6 24 22 Robot Miss Streak 9 | 1 5 9 . 2 8 7 Penetration Max 1 | . . . . . 1 . Secondary Targets 5 | . 1 . . . 4 . Max Gunslinging Chain 1 | . 1 . . . 1 . Shots Hit Robots 439 | 7 94 20 3 9 222 84 Core Hits 235 | 3 38 10 . 4 110 70 Critical Kills . | . . . . . . . Critical Parts Destroyed 2 | . . . . . 2 . Critical Strikes 17 | 1 4 . . . 6 6 Burn 9 | 1 4 . . . 4 . Destroy 2 | . . . . . 2 . Sever 6 | . . . . . . 6 Melee Attacks 67 | . . . 3 1 15 48 Impact . | . . . . . . . Slashing 63 | . . . . . 15 48 Piercing . | . . . . . . . Sneak Attacks 13 | . . . 3 1 7 2 Combat Hostiles 1 | . . . . 1 . . Follow-up Attacks . | . . . . . . . Damage Inflicted 9961 | 100 1079 312 . 101 5000 3369 Guns 6171 | 100 1028 312 . 101 3792 838 Cannons . | . . . . . . . Explosions 2202 | . . . . . 701 1501 Melee 1514 | . . . . . 498 1016 Ramming 74 | . 51 . . . 9 14 Kinetic 3855 | 39 787 312 . 101 2436 180 Thermal 2330 | 61 241 . . . 1356 672 Explosive 1642 | . . . . . 701 941 Electromagnetic 546 | . . . . . . 546 Impact . | . . . . . . . Slashing 1514 | . . . . . 498 1016 Piercing . | . . . . . . . Highest Corruption 29 | . . . . . 29 9 Average Corruption 8 | . . . . . 13 6 Corruption Purged 20 | . . . . . 20 . Corruption Blocked . | . . . . . . . Effects 180 | . . . . . 67 113 Message Errors 45 | . . . . . 13 32 Matter Fused 52 | . . . . . 17 35 Heat Flow Errors 21 | . . . . . 10 11 Energy Discharges 16 | . . . . . 7 9 Parts Fused 3 | . . . . . 1 2 Data Loss (minor) 26 | . . . . . 13 13 Data Loss (major) 9 | . . . . . 4 5 Misfires 4 | . . . . . 1 3 Alerts 3 | . . . . . . 3 Weapon Failures 1 | . . . . . 1 . Overload Shots . | . . . . . . . Overflow Damage 460 | . . . . . 155 305 Projectiles . | . . . . . . . Explosions 316 | . . . . . 34 282 Melee 144 | . . . . . 121 23 Knockbacks . | . . . . . . . Impact . | . . . . . . . Kinetic . | . . . . . . . Secondary . | . . . . . . . Self-Inflicted Damage 730 | . . . . . 344 386 Shots 16 | . . . . . 8 8 Rammed 20 | . 8 . . . 4 8 Targets Rammed 20 | . 8 . . . 4 8 Kicked . | . . . . . . . Crushed . | . . . . . . . Highest Temperature 567 | 45 156 5 . . 567 380 Average Temperature 90 | 23 36 4 . . 136 78 Received Heat Transfer 2122 | . 276 96 . 48 1395 307 Effects 19 | . . . . . 10 9 Shutdowns 5 | . . . . . 4 1 Energy Bleed 3 | . . . . . 2 1 Interference 7 | . . . . . 3 4 Matter Decay 1 | . . . . . . 1 Short Circuit 1 | . . . . . . 1 Damage (minor) 2 | . . . . . 1 1 Siege Activations . | . . . . . . . Martial Activations . | . . . . . . . Shielding Activations . | . . . . . . . Robots Disrupted . | . . . . . . . Combat Hostiles . | . . . . . . . Robots Corrupted 1 | . . . . . . 1 Combat Hostiles 1 | . . . . . . 1 Parts Fried 3 | . . . . . . 3 Impact Corruptions . | . . . . . . . Robots Melted 1 | . . . . . 1 . Combat Hostiles 1 | . . . . . 1 . Parts Melted 7 | . 2 . . . 5 . Heat Transferred 5272 | 259 988 . . . 3125 900 Parts Sabotaged . | . . . . . . . Parts Stolen . | . . . . . . . Parts Stripped . | . . . . . . . Power Chain Reactions 4 | . . . . . . 4 Alert | -11 -10 -10 -10 -9 -8 -7 ------- Run | Yrd Mat Min Exi Min Mat Fac Maximum Alert Level 3 | . . . . . 3 2 Low Security (%) 60 | 100 100 100 . 100 42 35 Level 1 13 | . . . . . 3 36 Level 2 15 | . . . . . 20 27 Level 3 10 | . . . . . 34 . Level 4 . | . . . . . . . Level 5 . | . . . . . . . High Security . | . . . . . . . Max Security . | . . . . . . . Peak Influence 875 | 10 94 114 . 40 875 556 Initial 393 | . . 11 . . . 393 Average 227 | 1 13 51 . 1 409 281 Influence Increases 3610 | 10 340 259 . 50 1474 1477 Destroy 0b10 Robot/C 1640 | . 220 200 . 40 820 360 Destroy 0b10 Robot/NC 255 | 10 30 10 . . 120 85 Destroy Leader 422 | . 56 40 . 10 186 130 Allied During Kill 9 | . . 9 . . . . Successful Hack 61 | . 17 . . . 13 31 Disable Machine 465 | . . . . . 45 420 Destroy Structure 173 | . 2 . . . 80 91 Partial Spotted 180 | . . . . . 30 150 Lose Combat Pursuer 405 | . 15 . . . 180 210 Influence Decreases 3343 | 10 310 246 43 50 609 2075 Entered New Map 534 | . . 19 43 . . 472 Time Decay 1636 | 10 257 197 . 50 399 723 Search Patrol Dispatched 100 | . . . . . . 100 Lost Part 510 | . 50 10 . . 210 240 Lost Ally 20 | . . 20 . . . . Purge Threat 543 | . 3 . . . . 540 Squads Dispatched 37 | . 2 . . . 11 24 Investigation 14 | . 1 . . . 4 9 Extermination 10 | . . . . . . 10 Reinforcement 10 | . 1 . . . 5 4 Assault 3 | . . . . . 2 1 Garrison . | . . . . . . . Intercept . | . . . . . . . Searches Triggered 1 | . . . . . . 1 Construction Impeded 2 | . . . . . 2 . Haulers Reinforced 2 | . . . . . . 2 Active Scanning Responses . | . . . . . . . Cargo Convoy Interrupts . | . . . . . . . Stealth | -11 -10 -10 -10 -9 -8 -7 --------- Run | Yrd Mat Min Exi Min Mat Fac Distress Signals 12 | . 2 . . . 8 2 Communications Jammed . | . . . . . . . Distress Signals . | . . . . . . . Times Spotted 158 | . 26 10 . 2 70 50 Peak Tracking Total 9 | . 4 3 . 2 9 5 Tactical Retreats 23 | . 1 . . . 9 13 Traps | -11 -10 -10 -10 -9 -8 -7 ------- Run | Yrd Mat Min Exi Min Mat Fac Traps Triggered 14 | . 3 . . . 2 9 Indirectly 3 | . . . . . . 3 Trap Hack Attempts . | . . . . . . . Triggered . | . . . . . . . Disarmed 6 | . . . . . . 6 Reprogrammed . | . . . . . . . Reused . | . . . . . . . Traps Extracted . | . . . . . . . Installed . | . . . . . . . Triggered . | . . . . . . . Machines | -11 -10 -10 -10 -9 -8 -7 ---------- Run | Yrd Mat Min Exi Min Mat Fac Machines Disabled 31 | . . . . . 3 28 Max in Single Turn 8 | . . . . . 1 8 Garrison Access 3 | . . . . . . 3 Machines Repaired . | . . . . . . . Machines Dismantled . | . . . . . . . Machines Sabotaged . | . . . . . . . Overloaded Fab Kills . | . . . . . . . Hacking | -11 -10 -10 -10 -9 -8 -7 --------- Run | Yrd Mat Min Exi Min Mat Fac Machines Accessed 41 | . 6 . . . 9 26 Terminals 25 | . 6 . . . 6 13 Fabricators 4 | . . . . . . 4 Repair Stations 4 | . . . . . 2 2 Recycling Units 2 | . . . . . . 2 Scanalyzers 3 | . . . . . 1 2 Garrison Access 3 | . . . . . . 3 Total Hacks 103 | . 12 . . . 27 64 Successful 77 | . 8 . . . 13 56 Failed 26 | . 4 . . . 14 8 Catastrophic 5 | . . . . . 3 2 Database Lockouts . | . . . . . . . Manual 54 | . 12 . 1 . 12 29 Terminals 68 | . 12 . . . 19 37 Fabricators 9 | . . . . . . 9 Repair Stations 12 | . . . . . 6 6 Recycling Units 2 | . . . . . . 2 Scanalyzers 8 | . . . . . 2 6 Garrison Access 4 | . . . . . . 4 Terminal Hacks 19 | . 1 . . . 2 16 Robot Schematic 1 | . . . . . . 1 Prototype ID Bank 2 | . . . . . . 2 Branch Access Points 1 | . . . . . . 1 Machine Index 1 | . . . . . . 1 Unreport Threat 6 | . 1 . . . 1 4 Locate Traps 1 | . . . . . . 1 Disarm Traps 1 | . . . . . . 1 Transport Status 1 | . . . . . . 1 Recall Investigation 2 | . . . . . . 2 Recall Reinforcements 1 | . . . . . . 1 Hauler Manifests 2 | . . . . . 1 1 Fabricator Hacks 8 | . . . . . . 8 Load Schematic 4 | . . . . . . 4 Build 4 | . . . . . . 4 Repair Station Hacks 10 | . . . . . 4 6 Scan Component 6 | . . . . . 3 3 Repair 4 | . . . . . 1 3 Recycling Unit Hacks 2 | . . . . . . 2 Report Inventory 2 | . . . . . . 2 Scanalyzer 7 | . . . . . 2 5 Insert Component 3 | . . . . . 1 2 Analyze 3 | . . . . . 1 2 Retrieve Study 1 | . . . . . . 1 Garrison Access Hacks 4 | . . . . . . 4 Seal Access 3 | . . . . . . 3 Coupler Status 1 | . . . . . . 1 Unauthorized Hacks 27 | . 7 . . . 5 15 Terminals 27 | . 7 . . . 5 15 Botnet 24 | . 6 . . . 5 13 Operators 3 | . 1 . . . . 2 Fabricators . | . . . . . . . Repair Stations . | . . . . . . . Recycling Units . | . . . . . . . Scanalyzers . | . . . . . . . Garrison Access . | . . . . . . . Data Cores Recovered . | . . . . . . . Used . | . . . . . . . Hacking Detections 30 | . 4 . . . 8 18 Full Trace Events 12 | . . . . . 3 9 Feedback Events 1 | . . . . . . 1 Corruption 1 | . . . . . . 1 Feedback Blocked . | . . . . . . . Robot Schematics Acquired 1 | . . . . . . 1 Robots Built . | . . . . . . . Authchips . | . . . . . . . Time . | . . . . . . . Total Robot Build Rating . | . . . . . . . Part Schematics Acquired 3 | . . . . . 1 2 Parts Built 3 | . . . . . . 3 Authchips . | . . . . . . . Time 187 | . . . . . . 187 Total Part Build Rating 9 | . . . . . . 9 Part Studies Acquired 1 | . . . . . . 1 Parts Repaired 4 | . . . . . 1 3 Time 170 | . . . . . 50 120 Parts Recycled . | . . . . . . . Recycled Matter . | . . . . . . . Retrieved Matter . | . . . . . . . Retrieved Components . | . . . . . . . Parts Scanalyzed 3 | . . . . . 1 2 Part Schematics Acquired 3 | . . . . . 1 2 Parts Damaged . | . . . . . . . Bothacking | -11 -10 -10 -10 -9 -8 -7 ------------ Run | Yrd Mat Min Exi Min Mat Fac Used RIF Installer . | . . . . . . . Robots Hacked 6 | . . . 3 . . 3 Non-combat 4 | . . . 1 . . 3 Combat 2 | . . . 2 . . . Robot Hacks Applied 7 | . . . 3 . . 4 parse_system 5 | . . . 3 . . 2 no_distress 1 | . . . . . . 1 find_fabricator 1 | . . . . . . 1 Relay Couplers Released . | . . . . . . . Fabnet Peak Effective % . | . . . . . . . Robots Rewired . | . . . . . . . Allies Hacked . | . . . . . . . Hacks Repelled . | . . . . . . . Allies | -11 -10 -10 -10 -9 -8 -7 -------- Run | Yrd Mat Min Exi Min Mat Fac Total Allies 1 | . . 1 . . . . Largest Group 1 | . . 1 . . . . Highest-Rated Group 31 | . . 31 . . . . Highest-Rated Ally 31 | . . 31 . . . . Total Orders . | . . . . . . . Ally Attacks 15 | . . 15 . . . . Total Damage 209 | . . 209 . . . . Kills 6 | . . 6 . . . . Allies Corrupted . | . . . . . . . Allies Melted . | . . . . . . . Intel | -11 -10 -10 -10 -9 -8 -7 ------- Run | Yrd Mat Min Exi Min Mat Fac Active Infowar (turns) 4609 | . 2363 527 365 . 1354 . Sensors 1355 | . . . 1 . 1354 . Terrain 3254 | . 2363 527 364 . . . Robot Analysis Total . | . . . . . . . Derelict Logs Recovered 2 | . . . . 2 . . Drone Launches 2 | . . . . . 2 . Drone Recoveries 2 | . . . . . 2 . Exploration | -11 -10 -10 -10 -9 -8 -7 ------------- Run | Yrd Mat Min Exi Min Mat Fac Turns Passed 15213 | 94 3370 527 675 1072 4439 5036 Spaces Moved 7875 | 45 965 149 207 298 1251 4960 Core 10 | 5 . . . . 4 1 Treads 2636 | 40 965 149 207 298 883 94 Legs 350 | . . . . . 40 310 Wheels 728 | . . . . . 324 404 Hover . | . . . . . . . Flight 4151 | . . . . . . 4151 Fastest Speed 23 | 50 160 320 320 320 215 23 Average Speed 140 | 147 314 320 320 320 250 55 Slowest Speed 1995 | 160 480 320 320 320 1700 1995 Overloaded Moves . | . . . . . . . Propulsion Burnouts . | . . . . . . . Robots Hopped 36 | . . . . . . 36 Potential Cave-ins . | . . . . . . . Cave-ins Triggered . | . . . . . . . Exploration Rate (%) 60 | 4 98 38 59 71 72 80 Regions Visited 6 Branch Regions 3 Pre-discovered Areas 1 | . . . . 1 . . Known Exits Taken 1 | . . . . 1 . . Unknown Exits Taken 5 | 1 1 1 1 . 1 . Scrap Searched 1 | . . . . 1 . . Spaces Dug 9 | . . . . . 7 2 Terrain Destroyed 201 | . . . . . 75 126 Melee 7 | . . . . . 5 2 Projectile 2 | . . . . . 2 . AOE 192 | . . . . . 68 124 Terrain Rammed . | . . . . . . . Walls Destroyed . | . . . . . . . Machines Disabled . | . . . . . . . Actions | -11 -10 -10 -10 -9 -8 -7 --------- Run | Yrd Mat Min Exi Min Mat Fac Total 11256 | 59 1156 173 222 406 2235 7005 Wait 2654 | . 54 5 . 92 676 1827 Move 7797 | 44 964 148 206 297 1250 4888 Hop 36 | . . . . . . 36 Pick Up 97 | 3 19 6 1 2 34 32 Fast Attach 53 | 6 8 . . . 12 27 Attach 41 | . 4 . 2 1 19 15 Detach 9 | . 2 . 1 . 5 1 Swap 63 | 1 1 . 3 2 27 29 Drop 65 | . 6 . 6 . 28 25 Fire 337 | 5 90 14 . 11 165 52 Melee 67 | . . . 3 1 15 48 Ram 7 | . . . . . . 7 Kick . | . . . . . . . Crush 13 | . 8 . . . 4 1 Escape Stasis 17 | . . . . . . 17 Rewire . | . . . . . . . Trap . | . . . . . . . Miscellaneous . | . . . . . . . Route ------- -11/Scrapyard -10/Materials (discovered 6 exits: [*Mat x3] / [*Min x2] / [*Sub]) -10/Mines -10/Exiles -9/Mines -8/Materials (discovered 2 exits: *Fac x2) -7/Factory (discovered 6 exits: [*Fac x3] / *Sto / *Low x2) History --------- Turn | Location | Event 7 | -11/Scrapyard | Discovered new exit (range 15) 95 | -11/Scrapyard | Entered Materials 318 | -10/Materials | Build established: Mutant 595 | -10/Materials | Derelicts attacked the area 603 | -10/Materials | Discovered new exit (range 8) 733 | -10/Materials | Core integrity fell below 50% 765 | -10/Materials | Lost 4 parts (1p2n1w) 913 | -10/Materials | Discovered new exit (range 16) 1507 | -10/Materials | Discovered new exit (range 16) 1867 | -10/Materials | Discovered new exit (range 10) 2267 | -10/Materials | Discovered new exit (range 15) 2820 | -10/Materials | Discovered new exit (range 15) 3465 | -10/Materials | Entered Mines 3468 | -10/Mines | Received a Mining Laser from a helpful Derelict 3707 | -10/Mines | Found a damaged Exp. Sensor Array with a note attached 3714 | -10/Mines | Found Prototype Device 3853 | -10/Mines | Core integrity fell below 20% 3979 | -10/Mines | Deemed a non-threat by the Exiles lab entrance 3979 | -10/Mines | Discovered new exit (range 5) 3992 | -10/Mines | Entered Exiles 4070 | -10/Exiles | Met 8R-AWN 4131 | -10/Exiles | Met EX-HEX 4221 | -10/Exiles | Met EX-BIN 4256 | -10/Exiles | Aligned with FarCom system 4259 | -10/Exiles | Given EX-Vault access code 4333 | -10/Exiles | Opened EX-Vault 4355 | -10/Exiles | Found Prototype Device 4357 | -10/Exiles | Identified Supersonic Drone Bay 4383 | -10/Exiles | Identified Exp. Sensor Array 4427 | -10/Exiles | Warned to stay clear of 0b10 Research branches 4526 | -10/Exiles | Met EX-DEC 4638 | -10/Exiles | Discovered new exit (range 11) 4667 | -10/Exiles | Left Exiles lab with Supersonic Drone Bay 4667 | -10/Exiles | Entered Mines 5089 | -9/Mines | Learned location of Zion (-7) 5688 | -9/Mines | Identified exit to Materials 5739 | -9/Mines | Entered Materials 5739 | -8/Materials | Evolved 4 slots: Propulsion x2, Utility x2 6045 | -8/Materials | Build established: Skirmisher 6074 | -8/Materials | Repaired Lgt. Angular Momentum Engine? 6545 | -8/Materials | Discovered new exit (range 19) 7383 | -8/Materials | Discovered new exit (range 3) 7448 | -8/Materials | Build established: Scavenger-Mutant 8139 | -8/Materials | First assault squad dispatched 8530 | -8/Materials | System corruption reached 10% 8550 | -8/Materials | Core integrity fell below 50% 8584 | -8/Materials | Lost 10 parts (1p3n3u3w) 8836 | -8/Materials | Build established: Mutant 9353 | -8/Materials | Lost 4 parts (1p2n1u) 10178 | -8/Materials | Entered Factory 10178 | -7/Factory | Evolved 2 slots: Propulsion x1, Utility x1 10795 | -7/Factory | Discovered new exit (range 8) 11494 | -7/Factory | Lost 5 parts (1n2u2w) 11825 | -7/Factory | Build established: Scavenger-Mutant 12379 | -7/Factory | Discovered new exit (range 15) 12430 | -7/Factory | Core integrity fell below 50% 12445 | -7/Factory | Lost 11 parts (1p5n2u3w) 12686 | -7/Factory | Build established: Mutant 12864 | -7/Factory | Found Prototype Launcher 12869 | -7/Factory | Found Prototype Launcher 12884 | -7/Factory | Identified Rocket Array 12948 | -7/Factory | Fabricated Hacking Suite (x1) 12974 | -7/Factory | Fabricated Hacking Suite? 12978 | -7/Factory | First assault squad dispatched 13070 | -7/Factory | Fabricated Hacking Suite? 13198 | -7/Factory | Build established: Hacker-Sprinter 13458 | -7/Factory | Identified exit to Storage 13458 | -7/Factory | Identified exit to Lower Caves 13566 | -7/Factory | Discovered new exit (range 8) 13813 | -7/Factory | Discovered new exit (range 4) 14514 | -7/Factory | Core integrity fell below 20% 14519 | -7/Factory | Repaired Imp. Deuterium Engine 14714 | -7/Factory | Repaired Mni. Grenade Launcher 14787 | -7/Factory | Discovered new exit (range 12) 14845 | -7/Factory | Lost 5 parts (1p3n1w) 14927 | -7/Factory | Repaired Xenon Bombardment Thruster+? 14978 | -7/Factory | Search patrols dispatched 15214 | -7/Factory | Destroyed by P-60 Hacker with Shock Rifle Last Messages --------------- Connecting with Fabricator... >>Load(Xenon Bombardment Thruster) Uploading Xenon Bombardment Thruster schematic... Loaded successfully: Xenon Bombardment Thruster Rating: 4 Time: 42 Initiate build sequence. >>Build Building Xenon Bombardment Thruster... ETC: 42 ALERT: Unauthorized use of fabrication network. Dispatching investigation squad. Assembly Bed disabled. Cesium-ion Thruster destroyed. P-60 Hacker Unknown Energy Gun severed. Imp. Cesium-ion Thruster destroyed. P-60 Hacker Gravmag System severed. Destroyed Remote Datajack. Map ----- +----------------------------------------------------+ | T#???????# # #??????# ## | | #???????# ! # ######## ^# | | ##???????# +% + | | #????????# """ """ ##################### | | #????????# """ """ #???????????????????# | | #????????# """ """ #???????????????????## | | ###+########????##########################???????? | | #????????????????# #???????? | | #????????????????# """ #???????? | | #????????????????# """"" #???????? | | #????????????????# """"" #???????? | | #????????????????# #???????? | | #????????????????# """ #???????? | | #????????????????# """"" #???????? | | #?????##########?# """"" !#???????? | | #?????# #?# #???????? | | #?????# """ #?# #???????? | | ###############??# ""F"" #?# #???????? | | # """G""" #??# "" "" #?# #???????? | | # """ """ #??# #?#####+#+######???????? | | # #??# #?????# #######????? | | # #??# #?????# # #???? | | """ #! """" #??# """""" #?????# #= !####? | | Y" # """"! #??# """""" #?????# # ! # ? | | """ #! ]""""= #??# """""" #?????# # #[ ? | | ??# """"= #??# """""=@#?????# # """ # | | ######+########### p #?????# # """ # "" | | # """""" #?????# # """ # "" | | # """""" #?????# # #! "" | | # """""" #?????# # """ # "" | | # """""" #?????# + """ # "" | | # #?????# # """ # "" | | ######+##### # #?????# # #| | | ?# # ###+############ ######## "" | | ?# # # "" | | ?#! [ # w # "" | | ?# + """ # "" | | ?# """ """ # """ # "" | | ?# """ """ # """ # "" | | ?# """ """ #####+###+############ # | | ?# ## # ! # """ ##### | | ?############ # # """ | | ????????????# """""" # """" # """ | | ????????????# """""" #! """" # | | ????????????# """""" # """" #!! | | ????????????# """""" # """" #!! | | ????????????# # """" # ###+# | | ????????????# # """" # # | | ????????????# # # """ # | | ????????????# # """" + """ # | +----------------------------------------------------+ Best States ------------- Heat Dissipation 45 Energy Generation 18 Energy Capacity 310 Matter Stores 300 Matter Capacity 300 Sight Range 16 Robot Scan Range 20 Terrain Scan Range 16 Terrain Scan Density 410 Armor Coverage 225 Weapon Cycling 15 Evasion (%) 65 Targeting Accuracy 5 Core Analysis 9 Recoil Reduction 4 Offensive Hacking 50 Item Schematics ----------------- Hacking Suite | -8/Materials | Scanalyzed Hrd. Medium Armor Plating | -7/Factory | Scanalyzed Xenon Bombardment Thruster | -7/Factory | Scanalyzed Robot Schematics ------------------ Y-54 Guardian | -7/Factory | Hacked Fabricated ------------ Hacking Suite | x1 | -7/Factory Hacking Suite | x1 | -7/Factory Hacking Suite | x1 | -7/Factory Repaired ---------- Lgt. Angular Momentum Engine | 68% | -8/Materials Imp. Deuterium Engine | 47% | -7/Factory Mni. Grenade Launcher | 64% | -7/Factory Xenon Bombardment Thruster | 63% | -7/Factory Studied --------- Xenon Bombardment Thruster | -7/Factory | Hacked Alien Tech Used ----------------- None Achievements -------------- Can't Catch Me Close Call Ew, Corruption I Spy It's Just You Junior Dev Just What I Needed Made in Tau Ceti IV Maybe Next Time I'll Detach My Launcher Part-time Mechanic Party Time Please Form A Line Shopping List Significant Disruption Suspicious Throw Away The Key Well Done Challenges ------------ None Game ------ Seed InsulationPortableRocket Manual? 0 Play Time 02:13:10 Cumulative 5.9 hours Start 2026.01.04 @ 22:53:11 End 2026.01.05 @ 18:53:04 Sessions 3 Manual Loads 0 Difficulty Rogue Special Mode None Game No. 10 Rogue 10 Adventurer 0 Explorer 0 Win Type - Total 0 Types 0/0/0/0/0/0/0/0/0/0 Lore% 2 Gallery% 11 Achievement% 13 Wizard Run 0 Options --------- Layout 1 ASCII 0 Keyboard 1 Movement Vi Keybinds 0 Fullscreen 1 Font 24/Smallcaps Map View 50x35 Zoom Use 14% Tactical HUD 0 Map Filters NONE Filters NONE Steam 1 RUN: 37b6c5b7-0a16-4f59-814a-a92369c72cb3